Cogmind - Beta 16.1 @@@ ROGUE MODE // 2026.02.28 @ 01:28:10 Player: FAQ Result: Destroyed by S-10 Pest with Light Assault Rifle Performance ------------- Evolutions (0) 0 Regions Visited (3) 600 Robots Destroyed (22) 110 Value Destroyed (452) 452 Prototype IDs (3) 60 Alien Tech Used (0) 0 Bonus (0) 0 TOTAL SCORE: 1222 Bonus ------- None Cogmind --------- Core Integrity 0/250 Matter 275/300 Energy 100/100 System Corruption 1% Temperature Cool (0) Movement Treading (320) Ox2 Location -10/Subcaves Parts ------- > --- POWER (1) -------- (None) > --- PROPULSION (2) --- Light Treads > --- UTILITY (2) ------ High-capacity Storage Unit > --- WEAPON (2) ------- Small Laser > --- INVENTORY (20) --- Wheel Compact Wheel Structural Scanner Hacking Suite Datajack Peak State ------------ > --- POWER ------------ Light Ion Engine > --- PROPULSION ------- Light Treads Light Treads > --- UTILITY ---------- High-capacity Storage Unit Light Armor Plating > --- WEAPON ----------- Assault Rifle Assault Rifle > --- INVENTORY -------- Light Ion Engine Light Treads Wheel Compact Wheel Hacking Suite Small Laser Assault Rifle Datajack [Rating: 8] Favorites ----------- Power Light Ion Engine Engine Light Ion Engine Propulsion Light Treads Treads Light Treads Leg Aluminum Leg Utility High-capacity Storage Unit Storage High-capacity Storage Unit Protection Light Armor Plating Weapon Assault Rifle Energy Gun Small Laser Ballistic Gun Assault Rifle Build | -11 -10 -10 -10 ------- Run | Yrd Mat Min Sub Slots Evolved . | . . . . Power . | . . . . Propulsion . | . . . . Utility . | . . . . Weapon . | . . . . Parts Attached 8 | . 5 1 2 Power 1 | . 1 . . Engine 1 | . 1 . . Core . | . . . . Reactor . | . . . . Propulsion 3 | . 2 . 1 Treads 3 | . 2 . 1 Leg . | . . . . Wheel . | . . . . Hover . | . . . . Flight . | . . . . Utility 2 | . 2 . . Device . | . . . . Storage 1 | . 1 . . Processor . | . . . . Hackware . | . . . . Protection 1 | . 1 . . Artifact . | . . . . Weapon 2 | . . 1 1 Energy Gun 1 | . . . 1 Energy Cannon . | . . . . Ballistic Gun 1 | . . 1 . Ballistic Cannon . | . . . . Launcher . | . . . . Special Weapon . | . . . . Impact Weapon . | . . . . Slashing Weapon . | . . . . Piercing Weapon . | . . . . Special Melee Weapon . | . . . . Unidentified Prototypes . | . . . . Parts Lost 7 | . . 2 5 Power 1 | . . . 1 Propulsion 2 | . . . 2 Utility 1 | . . 1 . Weapon 3 | . . 1 2 Highest Loss Streak 3 | . . 2 3 To Critical Strikes . | . . . . Average Backups 7 | . 8 7 5 Power . | . . . . Propulsion 2 | . 3 3 2 Utility 1 | . 1 2 2 Weapon 1 | . 1 1 . Tool/Special . | . . . . Unused Backups 6 | . 3 . 3 Power . | . . . . Propulsion 2 | . 2 . . Utility 3 | . 1 . 2 Weapon . | . . . . Tool/Special 1 | . . . 1 Average Slot Usage (%) 83 | . 98 91 54 Engine 9 | . 13 14 2 Treads 25 | . 27 28 21 Storage 14 | . 14 14 14 Protection 8 | . 12 8 . Energy Gun 3 | . . . 11 Ballistic Gun 19 | . 28 26 3 Peak Build Rating 8 | . 8 8 6 Average Rating 6 | . 7 6 3 On Entrance 6 | 6 6 8 6 Avg Prop Armor Cover (%) . | . . . . Naked Turns . | . . . . Heaviest Build 50 | 12 50 50 47 Greatest Support 40 | 20 40 40 40 Greatest Overweight (x) 2 | . 1 1 2 Average Overweight (x) 1 | . . 1 1 Largest Inventory Capacity 20 | . 20 20 20 Average Capacity 19 | . 19 20 20 Most Carried 9 | . 9 8 7 Average Carried 7 | . 8 7 5 Final Capacity 20 | 8 20 20 20 Final Carried 8 | 6 8 7 5 Class Distribution -------------------- 100% | Mutant Dominant Class ---------------- Mutant | -10/Materials Mutant | -10/Mines Mutant | -10/Subcaves Resources | -11 -10 -10 -10 ----------- Run | Yrd Mat Min Sub Matter Collected 675 | 200 303 67 105 Remotely . | . . . . Salvage Created 718 | . 601 . 117 Parts 43 | . 38 . 5 Haulers Intercepted 1 | . 1 . . Recyclers Shooed . | . . . . Parts Field Recycled . | . . . . Retrieved Matter . | . . . . Parts Self-Destructed 9 | . . . 9 Prevented . | . . . . Parts Restored . | . . . . Kills | -11 -10 -10 -10 ------- Run | Yrd Mat Min Sub Combat Hostiles Destroyed 15 | . 12 . 3 Guns 15 | . 12 . 3 Classes Destroyed 10 | . 8 . 2 Builder 2 | . 2 . . Tunneler 1 | . 1 . . Hauler 1 | . 1 . . Recycler 1 | . 1 . . Operator 1 | . 1 . . Watcher 1 | . 1 . . Swarmer 7 | . 6 . 1 Grunt 6 | . 6 . . Sentry 1 | . . . 1 Subdweller 1 | . . . 1 Best Kill Streak 4 | . 4 . 2 Combat Bots Only 3 | . 3 . 2 Max Kills in Single Turn 2 | . 2 . 1 Gunslinging 1 | . 1 . . Exploded . | . . . . Melee . | . . . . Uniques/NPCs Destroyed . | . . . . Combat | -11 -10 -10 -10 -------- Run | Yrd Mat Min Sub Hostile Shots Fired 126 | . 37 26 63 Missed 35 | . 12 9 14 Hits 91 | . 25 17 49 Melee 2 | . . 2 . Projectile 89 | . 25 15 49 Critical Strikes 3 | . 1 1 1 Part Disruptions 1 | . 1 . . Damage Taken 1254 | . 331 290 633 Core 255 | . 48 20 187 Absorbed by Shields . | . . . . Core Remaining (%) 100 | 100 . . . Volleys Fired 71 | . 52 2 17 Largest 2 | . 2 2 2 Hottest 40 | . 40 40 40 Shots Fired 136 | . 104 4 28 Gun 136 | . 104 4 28 Cannon . | . . . . Launcher . | . . . . Special . | . . . . Kinetic 131 | . 104 4 23 Thermal 5 | . . . 5 Explosive . | . . . . Electromagnetic . | . . . . Robot Hit Streak 6 | . 6 1 6 Robot Miss Streak 3 | . 3 2 3 Penetration Max . | . . . . Secondary Targets 1 | . 1 . . Max Gunslinging Chain 1 | . 1 . . Shots Hit Robots 83 | . 62 1 20 Core Hits 35 | . 30 . 5 Critical Kills . | . . . . Critical Parts Destroyed . | . . . . Critical Strikes . | . . . . Melee Attacks . | . . . . Impact . | . . . . Slashing . | . . . . Piercing . | . . . . Sneak Attacks . | . . . . Combat Hostiles . | . . . . Follow-up Attacks . | . . . . Damage Inflicted 1062 | . 797 14 251 Guns 1062 | . 797 14 251 Cannons . | . . . . Explosions . | . . . . Melee . | . . . . Ramming . | . . . . Kinetic 1027 | . 797 14 216 Thermal 35 | . . . 35 Explosive . | . . . . Electromagnetic . | . . . . Impact . | . . . . Slashing . | . . . . Piercing . | . . . . Highest Corruption 1 | . 1 1 1 Average Corruption 1 | . 1 1 1 Corruption Purged . | . . . . Corruption Blocked . | . . . . Effects 8 | . 2 1 5 Message Errors 1 | . . 1 . Matter Fused 5 | . 1 . 4 Data Loss (minor) 2 | . 1 . 1 Overload Shots . | . . . . Overflow Damage . | . . . . Projectiles . | . . . . Explosions . | . . . . Melee . | . . . . Knockbacks . | . . . . Impact . | . . . . Kinetic . | . . . . Secondary . | . . . . Self-Inflicted Damage . | . . . . Shots . | . . . . Rammed . | . . . . Targets Rammed . | . . . . Kicked . | . . . . Crushed . | . . . . Highest Temperature 7 | . 7 . . Average Temperature 4 | . 4 . . Received Heat Transfer 279 | . 141 18 120 Siege Activations . | . . . . Martial Activations . | . . . . Shielding Activations . | . . . . Robots Disrupted . | . . . . Combat Hostiles . | . . . . Robots Corrupted . | . . . . Combat Hostiles . | . . . . Parts Fried . | . . . . Impact Corruptions . | . . . . Robots Melted . | . . . . Combat Hostiles . | . . . . Parts Melted . | . . . . Heat Transferred 75 | . . . 75 Parts Sabotaged . | . . . . Parts Stolen . | . . . . Parts Stripped . | . . . . Power Chain Reactions . | . . . . Alert | -11 -10 -10 -10 ------- Run | Yrd Mat Min Sub Maximum Alert Level . | . . . . Low Security (%) 100 | . 100 100 . Level 1 . | . . . . Level 2 . | . . . . Level 3 . | . . . . Level 4 . | . . . . Level 5 . | . . . . High Security . | . . . . Max Security . | . . . . Peak Influence 154 | . 154 14 . Initial 14 | . . 14 . Average 41 | . 43 3 . Influence Increases 506 | . 451 15 40 Destroy 0b10 Robot/C 280 | . 240 . 40 Destroy 0b10 Robot/NC 35 | . 35 . . Destroy Leader 54 | . 54 . . Successful Hack 45 | . 45 . . Disable Machine 15 | . . 15 . Destroy Structure 2 | . 2 . . Lose Combat Pursuer 75 | . 75 . . Influence Decreases 506 | . 413 53 40 Entered New Map 24 | . . 24 . Time Decay 453 | . 413 10 30 Lost Part 29 | . . 19 10 Squads Dispatched 1 | . 1 . . Investigation . | . . . . Extermination . | . . . . Reinforcement 1 | . 1 . . Assault . | . . . . Garrison . | . . . . Intercept . | . . . . Searches Triggered . | . . . . Construction Impeded . | . . . . Haulers Reinforced . | . . . . Active Scanning Responses . | . . . . Cargo Convoy Interrupts . | . . . . Stealth | -11 -10 -10 -10 --------- Run | Yrd Mat Min Sub Distress Signals 3 | . 3 . . Communications Jammed . | . . . . Distress Signals . | . . . . Times Spotted 39 | . 28 5 6 Peak Tracking Total 4 | . 4 2 3 Tactical Retreats 1 | . 1 . . Traps | -11 -10 -10 -10 ------- Run | Yrd Mat Min Sub Traps Triggered 4 | . 3 . 1 Indirectly . | . . . . Trap Hack Attempts . | . . . . Triggered . | . . . . Disarmed . | . . . . Reprogrammed . | . . . . Reused . | . . . . Traps Extracted . | . . . . Installed . | . . . . Triggered . | . . . . Machines | -11 -10 -10 -10 ---------- Run | Yrd Mat Min Sub Machines Disabled 1 | . . 1 . Max in Single Turn 1 | . . 1 . Machines Repaired . | . . . . Machines Dismantled . | . . . . Machines Sabotaged . | . . . . Overloaded Fab Kills . | . . . . Hacking | -11 -10 -10 -10 --------- Run | Yrd Mat Min Sub Machines Accessed 7 | . 7 . . Terminals 7 | . 7 . . Fabricators . | . . . . Repair Stations . | . . . . Recycling Units . | . . . . Scanalyzers . | . . . . Garrison Access . | . . . . Total Hacks 19 | . 19 . . Successful 10 | . 10 . . Failed 9 | . 9 . . Catastrophic . | . . . . Database Lockouts . | . . . . Manual 18 | . 18 . . Terminals 19 | . 19 . . Fabricators . | . . . . Repair Stations . | . . . . Recycling Units . | . . . . Scanalyzers . | . . . . Garrison Access . | . . . . Terminal Hacks 2 | . 2 . . Prototype ID Bank 2 | . 2 . . Fabricator Hacks . | . . . . Repair Station Hacks . | . . . . Recycling Unit Hacks . | . . . . Scanalyzer . | . . . . Garrison Access Hacks . | . . . . Unauthorized Hacks 8 | . 8 . . Terminals 8 | . 8 . . Botnet 6 | . 6 . . Skim 2 | . 2 . . Fabricators . | . . . . Repair Stations . | . . . . Recycling Units . | . . . . Scanalyzers . | . . . . Garrison Access . | . . . . Data Cores Recovered . | . . . . Used . | . . . . Hacking Detections 7 | . 7 . . Full Trace Events . | . . . . Feedback Events . | . . . . Feedback Blocked . | . . . . Robot Schematics Acquired . | . . . . Robots Built . | . . . . Authchips . | . . . . Time . | . . . . Total Robot Build Rating . | . . . . Part Schematics Acquired . | . . . . Parts Built . | . . . . Authchips . | . . . . Time . | . . . . Total Part Build Rating . | . . . . Part Studies Acquired . | . . . . Parts Repaired . | . . . . Time . | . . . . Parts Recycled . | . . . . Recycled Matter . | . . . . Retrieved Matter . | . . . . Retrieved Components . | . . . . Parts Scanalyzed . | . . . . Part Schematics Acquired . | . . . . Parts Damaged . | . . . . Bothacking | -11 -10 -10 -10 ------------ Run | Yrd Mat Min Sub Used RIF Installer . | . . . . Robots Hacked . | . . . . Non-combat . | . . . . Combat . | . . . . Robot Hacks Applied . | . . . . Relay Couplers Released . | . . . . Fabnet Peak Effective % . | . . . . Robots Rewired . | . . . . Allies Hacked . | . . . . Hacks Repelled . | . . . . Allies | -11 -10 -10 -10 -------- Run | Yrd Mat Min Sub Total Allies . | . . . . Largest Group . | . . . . Highest-Rated Group . | . . . . Highest-Rated Ally . | . . . . Total Orders . | . . . . Ally Attacks . | . . . . Total Damage . | . . . . Kills . | . . . . Allies Corrupted . | . . . . Allies Melted . | . . . . Intel | -11 -10 -10 -10 ------- Run | Yrd Mat Min Sub Active Infowar (turns) . | . . . . Robot Analysis Total . | . . . . Derelict Logs Recovered 2 | . . . 2 Drone Launches . | . . . . Drone Recoveries . | . . . . Exploration | -11 -10 -10 -10 ------------- Run | Yrd Mat Min Sub Turns Passed 2399 | . 1546 56 797 Spaces Moved 883 | 1 586 20 276 Core . | . . . . Treads 864 | . 568 20 276 Legs 19 | 1 18 . . Wheels . | . . . . Hover . | . . . . Flight . | . . . . Fastest Speed 120 | 120 120 240 240 Average Speed 244 | 120 232 240 271 Slowest Speed 320 | 120 240 240 320 Overloaded Moves . | . . . . Propulsion Burnouts . | . . . . Robots Hopped . | . . . . Potential Cave-ins . | . . . . Cave-ins Triggered . | . . . . Exploration Rate (%) 31 | 1 88 9 27 Regions Visited 3 Branch Regions 2 Pre-discovered Areas 1 | . . 1 . Known Exits Taken . | . . . . Unknown Exits Taken 3 | 1 1 1 . Scrap Searched . | . . . . Spaces Dug . | . . . . Terrain Destroyed . | . . . . Melee . | . . . . Projectile . | . . . . AOE . | . . . . Terrain Rammed . | . . . . Walls Destroyed . | . . . . Machines Disabled . | . . . . Actions | -11 -10 -10 -10 --------- Run | Yrd Mat Min Sub Total 988 | . 668 25 295 Wait 16 | . 13 3 . Move 880 | . 585 19 276 Hop . | . . . . Pick Up 5 | . 5 . . Fast Attach 4 | . 4 . . Attach 6 | . 3 1 2 Detach 3 | . 3 . . Swap . | . . . . Drop 3 | . 3 . . Fire 71 | . 52 2 17 Melee . | . . . . Ram . | . . . . Kick . | . . . . Crush . | . . . . Escape Stasis . | . . . . Rewire . | . . . . Trap . | . . . . Miscellaneous . | . . . . Route ------- -11/Scrapyard -10/Materials (discovered 4 exits: [*Mat x2] / [*Min x2]) -10/Mines -10/Subcaves (discovered 1 exit: [*Mat]) History --------- Turn | Location | Event 1 | -11/Scrapyard | Discovered new exit (range 0) 1 | -11/Scrapyard | Entered Materials 232 | -10/Materials | Discovered new exit (range 14) 314 | -10/Materials | Build established: Mutant 607 | -10/Materials | Discovered new exit (range 15) 831 | -10/Materials | Discovered new exit (range 13) 1256 | -10/Materials | Discovered new exit (range 16) 1547 | -10/Materials | Entered Mines 1548 | -10/Mines | Learned location of Storage (-8) 1548 | -10/Mines | Assembled infested the area 1553 | -10/Mines | Assisted by a Guerilla fighting off Assembled 1586 | -10/Mines | Discovered new exit (range 9) 1603 | -10/Mines | Entered Subcaves 1604 | -10/Subcaves | Approached by a straggling Scientist 1658 | -10/Subcaves | Core integrity fell below 50% 1727 | -10/Subcaves | Learned location of 1 exit from Materials 1734 | -10/Subcaves | Learned location of 1 exit from Materials 1746 | -10/Subcaves | Lost 3 parts (1p2w) 2314 | -10/Subcaves | Discovered new exit (range 15) 2389 | -10/Subcaves | Core integrity fell below 20% 2400 | -10/Subcaves | Destroyed by S-10 Pest with Light Assault Rifle Last Messages --------------- QO-2HB(c): "I think it's somewhere northeast of here" QO-2HB(c): "I think it's somewhere north of here" 02012_ OK-O3P(u) tweaks Twisted Machinery. 02054_ Triggered Piercing Trap. 02054_ Spikes shoot up from the floor. 02054_ Critical hit (Impale). 02054_ Lgt. Treads destroyed. 02054_ Critical hit (Impale). 02061_ QO-2HB(c) triggered Piercing Trap. 02061_ Spikes shoot up from the floor. 02061_ QO-2HB(c) suffers critical hit (Impale). 02061_ QO-2HB(c) destroyed. 02067_ Subatomizers dissect the Wheel. 02074_ System corrupted: Matter fused (-8). 02280_ System corrupted: Matter fused (-9). 02314_ EXIT=FOUND 02387_ S-10 Pest destroyed. 02397_ Subatomizers dissect the Aluminum Leg. 02399_ Lgt. Assault Rifle fries itself beyond repair. 02400_ Lgt. Ion Engine fries itself beyond repair. Map ----- +----------------------------------------------------+ | ?????????????????????????????????????????????????? | | ?????????????????????????????????????????????????? | | ?????????????????????????????????????????????????? | | ?????????????????????????????????????????????????? | | ?????????????????????????????????????????????????? | | ?????????????????????????????????????????????????? | | ??????????????????????????? ?????????????????????? | | ??????????????????????????? ?????????????????????? | | ?????????????????????????? %?????????????????????? | | ?????????????????????????? ????????????????????? | | ??????????????????????????#%#????????????????????? | | ?????????????????????????? #### ????????????????? | | ??????????????????????????# ?????????????????? | | ?????????????????????????## ?????????????????? | | ?????????????????????????# s ??????????????????? | | ?????????????????????????# s ??????????????????? | | ????????????????????????## = ???????????????????? | | ??????????????????????### %#????###????????????? | | ??????????????????????# ##??## #????????????? | | ??????????????????????# #### #????????????? | | ??????????????????????# ## ##?##????????? | | ??????????????????????# ## #????????? | | ??????????????????????# #????????? | | ??????????????????????## # ##???????? | | " ????????????????????# ###### #???????? | | ??????????????????????# @#????## #???????? | | ??????????????????????## #????# ##???????? | | ???????????????????????# < #???### ##????????? | | ???????????????????????= ####### ##?????????? | | ??????????????????????=% # # # ##?????????? | | ?????????????????????# # #?????????? | | ?????????????????????### ##????????? | | ???????????????????????##% ## #????????? | | ????????????????##??????# ##### ##????????? | | ???????????????# ??????? ###?# #?????????? | | ??????????????## ??????? ## ### ##????????? | | ??????????????? #???????# # ### #????????? | | ??????????????## ####?????# #?## #????????? | | ??????????????# #????## #??## ##????????? | | ???????????????# #???## #???# ##?????????? | | ??????????????## #??## #???## #?????????? | | #?????????????# # ##?# #???# ##?????????? | | "?????????????## ##?# ###### #?????????? | | ###?????????## ### # #?????????? | | " #########?# ##?????????? | | # ## ### ### # ##??????????? | | # ## #?# ####???????????? | | #?# #??????????????? | | ## #?### #??????????????? | | ### #???## #?????????????? | +----------------------------------------------------+ Best States ------------- Heat Dissipation 25 Energy Generation 10 Energy Capacity 125 Matter Stores 300 Matter Capacity 300 Sight Range 16 Terrain Scan Density 10 Armor Coverage 150 Evasion (%) 55 Recoil Reduction 2 Item Schematics ----------------- None Robot Schematics ------------------ None Fabricated ------------ Nothing Repaired ---------- Nothing Studied --------- None Alien Tech Used ----------------- None Achievements -------------- None Challenges ------------ None Game ------ Seed CloakMyomerWeb Manual? 0 Play Time 00:08:41 Cumulative 61.2 hours Start 2026.02.28 @ 01:20:47 End 2026.02.28 @ 01:28:10 Sessions 1 Manual Loads 0 Difficulty Rogue Special Mode None Game No. 100 Rogue 100 Adventurer 0 Explorer 0 Win Type - Total 0 Types 0/0/0/0/0/0/0/0/0/0 Lore% 34 Gallery% 39 Achievement% 31 Wizard Run 0 Options --------- Layout 0 ASCII 1 Keyboard 1 Movement Numpad Keybinds 0 Fullscreen 1 Font 18/VGA_Max Map View 76x50 Zoom Use 0% Tactical HUD 1 Map Filters NONE Filters NONE Steam 1 RUN: 6f421b73-2ff0-4d55-b98c-8b15ddb367b8